[Event "Cellavision Cup 2019"]
[Site "Lund"]
[Date "2019.08.04"]
[Round "7.2"]
[White "Kryakvin, Dmitry"]
[Black "Hector, Jonny"]
[Result "1-0"]
[ECO "A06"]
[WhiteElo "2586"]
[BlackElo "2487"]
[Annotator "ChessBase"]
[PlyCount "103"]
[EventDate "2019.08.02"]
[EventType "swiss"]
[EventCountry "SWE"]
[SourceTitle "playchess.com"]
[Source "ChessBase"]
[SourceQuality "1"]
[TimeControl "900+5"]

1. Nf3 {[%emt 0:00:00]} d5 {[%emt 0:00:00]} 2. e3 {[%emt 0:00:00]} Nf6 {[%emt 0:00:00]} 3. c4 {[%emt 0:00:00]} c6 {[%emt 0:00:00]} 4. Qc2 {[%emt 0:00:00]} e6 {[%emt 0:00:00]} 5. b3 {[%emt 0:00:00]} Bd6 {[%emt 0:00:00]} 6. Bb2 {[%emt 0:00:00]} O-O {[%emt 0:00:00]} 7. d4 {[%emt 0:00:00]} Ne4 {[%emt 0:00:00]} 8. Be2 {[%emt 0:00:00]} b6 {[%emt 0:00:00]} 9. O-O {[%emt 0:00:00]} Bb7 {[%emt 0:00:00]} 10. Nbd2 {[%emt 0:00:00]} f5 {[%emt 0:00:00]} 11. Ne5 {[%emt 0:00:00]} c5 {[%emt 0:00:00]} 12. Rad1 {[%emt 0:00:00]} cxd4 {[%emt 0:00:00]} 13. Bxd4 {[%emt 0:00:00]} Nd7 {[%emt 0:00:00]} 14. Nxd7 {[%emt 0:00:00]} Qxd7 {[%emt 0:00:00]} 15. Nf3 {[%emt 0:00:00]} Qc7 {[%emt 0:00:00]} 16. Qb2 {[%emt 0:00:00]} f4 {[%emt 0:00:00]} 17. Ne5 {[%emt 0:00:00]} Rf5 {[%emt 0:00:00]} 18. exf4 {[%emt 0:00:00]} Rxf4 {[%emt 0:00:00]} 19. g3 {[%emt 0:00:00]} Rf5 {[%emt 0:00:00]} 20. f4 {[%emt 0:00:00]} Raf8 {[%emt 0:00:00]} 21. Bg4 {[%emt 0:00:00]} R5f6 {[%emt 0:00:00]} 22. cxd5 {[%emt 0:00:00]} Bxd5 {[%emt 0:00:00]} 23. Bf3 {[%emt 0:00:00]} Nc5 {[%emt 0:00:00]} 24. Nc4 {[%emt 0:00:00]} Bxc4 {[%emt 0:00:00]} 25. bxc4 {[%emt 0:00:00]} Rg6 {[%emt 0:00:00]} 26. Kh1 {[%emt 0:00:00]} Be7 {[%emt 0:00:00]} 27. Qe2 {[%emt 0:00:00]} Kh8 {[%emt 0:00:00]} 28. Be5 {[%emt 0:00:00]} Qc8 {[%emt 0:00:00]} 29. Rfe1 {[%emt 0:00:00]} Nd7 {[%emt 0:00:00]} 30. Bc3 {[%emt 0:00:00]} Bf6 {[%emt 0:00:21]} 31. Bb4 {[%emt 0:00:00]} Nc5 {[%emt 0:00:18]} 32. Rd6 {[%emt 0:00:00]} e5 {[%emt 0:03:30]} 33. Bh5 {[%emt 0:00:00]} Be7 {[%emt 0:02:35]} 34. Rd5 {[%emt 0:00:00]} Rgf6 {[%emt 0:02:34]} 35. Rxe5 {[%emt 0:00:00]} Bd6 {[%emt 0:00:00]} 36. Re3 {[%emt 0:00:00]} Ne4 {[%emt 0:01:16]} 37. c5 {[%emt 0:01:11]} Nxc5 {[%emt 0:01:49]} 38. Bc3 {[%emt 0:00:00]} Rf5 {[%emt 0:00:17]} 39. Bg4 {[%emt 0:00:17]} Qb7+ {[%emt 0:00:00]} 40. Qg2 {[%emt 0:00:18]} Qxg2+ {[%emt 0:00:00]} 41. Kxg2 {[%emt 0:00:00]} R5f7 {[%emt 0:00:01]} 42. Rd1 {[%emt 0:00:00]} Nb7 {[%emt 0:01:04]} 43. Bf3 {[%emt 0:01:24]} Bc5 {[%emt 0:00:00]} 44. Red3 {[%emt 0:00:00]} Na5 {[%emt 0:01:17]} 45. Bh5 {[%emt 0:01:45]} Rf5 {[%emt 0:02:31]} 46. Rd7 {[%emt 0:01:50]} Rg8 {[%emt 0:00:08]} 47. Bf7 {[%emt 0:00:06]} Rf8 {[%emt 0:00:22]} 48. Be6 {[%emt 0:00:00]} R5f6 {[%emt 0:00:00]} 49. Bxf6 {[%emt 0:00:00]} Rxf6 {[%emt 0:00:00]} 50. Rxa7 {[%emt 0:00:08]} h5 {[%emt 0:00:00]} 51. Bf7 {[%emt 0:01:17]} h4 {[%emt 0:00:00]} 52. Rd5 {[%emt 0:00:00]} 1-0

[Event "Cellavision Cup 2019"]
[Site "Lund"]
[Date "2019.08.04"]
[Round "7.3"]
[White "Kulaots, Kaido"]
[Black "Popilski, Gil"]
[Result "1/2-1/2"]
[ECO "B90"]
[WhiteElo "2560"]
[BlackElo "2467"]
[Annotator "ChessBase"]
[PlyCount "111"]
[EventDate "2019.08.02"]
[EventType "swiss"]
[EventCountry "SWE"]
[SourceTitle "playchess.com"]
[Source "ChessBase"]
[SourceQuality "1"]
[TimeControl "900+5"]

1. e4 {[%emt 0:00:00]} c5 {[%emt 0:00:00]} 2. Nf3 {[%emt 0:00:00]} d6 {[%emt 0:00:00]} 3. d4 {[%emt 0:00:00]} cxd4 {[%emt 0:00:00]} 4. Nxd4 {[%emt 0:00:00]} Nf6 {[%emt 0:00:00]} 5. Nc3 {[%emt 0:00:00]} a6 {[%emt 0:00:00]} 6. h3 {[%emt 0:00:00]} e6 {[%emt 0:00:00]} 7. g4 {[%emt 0:00:00]} Nfd7 {[%emt 0:00:00]} 8. Bg2 {[%emt 0:00:00]} Be7 {[%emt 0:00:00]} 9. Be3 {[%emt 0:00:00]} Nc6 {[%emt 0:00:00]} 10. h4 {[%emt 0:00:00]} Nde5 {[%emt 0:00:00]} 11. g5 {[%emt 0:00:00]} O-O {[%emt 0:00:00]} 12. Qe2 {[%emt 0:00:00]} b5 {[%emt 0:00:00]} 13. f4 {[%emt 0:00:00]} Nxd4 {[%emt 0:00:00]} 14. Bxd4 {[%emt 0:00:00]} Nc6 {[%emt 0:00:00]} 15. Be3 {[%emt 0:00:00]} Bb7 {[%emt 0:00:00]} 16. O-O {[%emt 0:00:00]} b4 {[%emt 0:00:00]} 17. Na4 {[%emt 0:00:00]} Re8 {[%emt 0:00:00]} 18. Rad1 {[%emt 0:00:00]} Qc7 {[%emt 0:00:00]} 19. Bb6 {[%emt 0:00:00]} Qc8 {[%emt 0:00:00]} 20. Be3 {[%emt 0:00:00]} Qc7 {[%emt 0:00:00]} 21. h5 {[%emt 0:00:00]} Rac8 {[%emt 0:00:00]} 22. Bb6 {[%emt 0:00:00]} Qb8 {[%emt 0:00:00]} 23. g6 {[%emt 0:00:00]} Nd8 {[%emt 0:00:00]} 24. Bd4 {[%emt 0:00:00]} Bc6 {[%emt 0:00:00]} 25. Nb6 {[%emt 0:00:00]} Rc7 {[%emt 0:00:00]} 26. Qxa6 {[%emt 0:00:00]} fxg6 {[%emt 0:00:00]} 27. hxg6 {[%emt 0:00:00]} hxg6 {[%emt 0:00:00]} 28. Qe2 {[%emt 0:00:00]} Bf6 {[%emt 0:00:00]} 29. e5 {[%emt 0:00:00]} Bxg2 {[%emt 0:01:01]} 30. Qxg2 {[%emt 0:00:00]} dxe5 {[%emt 0:00:00]} 31. fxe5 {[%emt 0:00:00]} Bxe5 {[%emt 0:04:59]} 32. Bxe5 {[%emt 0:00:00]} Qxb6+ {[%emt 0:00:00]} 33. Kh2 {[%emt 0:00:00]} Rf7 {[%emt 0:01:48]} 34. Qxg6 {[%emt 0:01:40]} Qe3 {[%emt 0:00:00]} 35. Rde1 {[%emt 0:07:15]} Rf2+ {[%emt 0:04:47]} 36. Rxf2 {[%emt 0:00:16]} Qxf2+ {[%emt 0:00:00]} 37. Kh3 {[%emt 0:00:00]} Qf5+ {[%emt 0:02:21]} 38. Qxf5 {[%emt 0:00:42]} exf5 {[%emt 0:00:00]} 39. Bc3 {[%emt 0:00:00]} Rxe1 {[%emt 0:00:00]} 40. Bxe1 {[%emt 0:00:00]} Nc6 {[%emt 0:00:00]} 41. c3 {[%emt 0:00:00]} bxc3 {[%emt 0:00:00]} 42. Bxc3 {[%emt 0:00:00]} g5 {[%emt 0:00:00]} 43. a4 {[%emt 0:02:49]} Kf7 {[%emt 0:00:00]} 44. a5 {[%emt 0:00:00]} Ke6 {[%emt 0:00:00]} 45. a6 {[%emt 0:00:00]} Kd5 {[%emt 0:00:50]} 46. Be1 {[%emt 0:01:12]} Na7 {[%emt 0:00:00]} 47. Bf2 {[%emt 0:00:47]} Nb5 {[%emt 0:00:00]} 48. a7 {[%emt 0:02:52]} Nc7 {[%emt 0:00:00]} 49. Bb6 {[%emt 0:00:00]} Na8 {[%emt 0:00:00]} 50. Bd8 {[%emt 0:00:00]} g4+ {[%emt 0:00:00]} 51. Kg3 {[%emt 0:00:00]} Kc6 {[%emt 0:00:00]} 52. Bg5 {[%emt 0:00:00]} Kb7 {[%emt 0:00:00]} 53. Kf4 {[%emt 0:00:00]} Kxa7 {[%emt 0:00:00]} 54. Kxf5 {[%emt 0:00:00]} g3 {[%emt 0:00:00]} 55. Kg4 {[%emt 0:00:00]} g2 {[%emt 0:00:00]} 56. Be3+ {[%emt 0:00:00]} 1/2-1/2

[Event "Cellavision Cup 2019"]
[Site "Lund"]
[Date "2019.08.04"]
[Round "7.4"]
[White "Blomqvist, Erik"]
[Black "Malmstig, Erik"]
[Result "0-1"]
[ECO "B28"]
[WhiteElo "2492"]
[BlackElo "2335"]
[Annotator "ChessBase"]
[PlyCount "94"]
[EventDate "2019.08.02"]
[EventType "swiss"]
[EventCountry "SWE"]
[SourceTitle "playchess.com"]
[Source "ChessBase"]
[SourceQuality "1"]
[TimeControl "900+5"]

1. e4 {[%emt 0:00:00]} c5 {[%emt 0:00:00]} 2. Nf3 {[%emt 0:00:00]} e6 {[%emt 0:00:00]} 3. c3 {[%emt 0:00:00]} a6 {[%emt 0:00:00]} 4. d4 {[%emt 0:00:00]} Qc7 {[%emt 0:00:00]} 5. Bd3 {[%emt 0:00:00]} d6 {[%emt 0:00:00]} 6. O-O {[%emt 0:00:00]} Nd7 {[%emt 0:00:00]} 7. Qe2 {[%emt 0:00:00]} Ne7 {[%emt 0:00:00]} 8. Rd1 {[%emt 0:00:00]} Ng6 {[%emt 0:00:00]} 9. a4 {[%emt 0:00:00]} Be7 {[%emt 0:00:00]} 10. Na3 {[%emt 0:00:00]} b6 {[%emt 0:00:00]} 11. Be3 {[%emt 0:00:00]} Bb7 {[%emt 0:00:00]} 12. b4 {[%emt 0:00:00]} O-O {[%emt 0:00:00]} 13. Rab1 {[%emt 0:00:00]} Nf6 {[%emt 0:00:00]} 14. Nd2 {[%emt 0:00:00]} Bc6 {[%emt 0:00:00]} 15. Bc2 {[%emt 0:00:00]} cxb4 {[%emt 0:00:00]} 16. cxb4 {[%emt 0:00:00]} b5 {[%emt 0:00:00]} 17. Rdc1 {[%emt 0:00:00]} Qd7 {[%emt 0:00:00]} 18. f3 bxa4 {[%emt 0:00:00]} 19. Ndc4 {[%emt 0:00:00]} Rfb8 {[%emt 0:00:00]} 20. Na5 {[%emt 0:00:00]} Bb5 {[%emt 0:00:00]} 21. Bd3 {[%emt 0:00:00]} Bxd3 {[%emt 0:00:00]} 22. Qxd3 {[%emt 0:00:00]} d5 {[%emt 0:00:00]} 23. e5 {[%emt 0:00:00]} Ne8 {[%emt 0:00:00]} 24. Bd2 {[%emt 0:00:00]} Rb6 {[%emt 0:00:00]} 25. Nc2 {[%emt 0:00:00]} Rc8 {[%emt 0:00:00]} 26. Ra1 {[%emt 0:04:27]} f6 {[%emt 0:00:00]} 27. f4 {[%emt 0:00:56]} Qb5 {[%emt 0:00:00]} 28. Qe3 {[%emt 0:02:17]} Nh4 {[%emt 0:00:00]} 29. Qf2 {[%emt 0:03:38]} Nf5 {[%emt 0:00:00]} 30. g4 {[%emt 0:00:02]} Nh6 {[%emt 0:00:00]} 31. h3 {[%emt 0:00:16]} Qd3 {[%emt 0:01:39]} 32. Ra3 {[%emt 0:04:19]} Qg6 {[%emt 0:00:22]} 33. Rc3 {[%emt 0:01:08]} Rxc3 {[%emt 0:02:13]} 34. Bxc3 {[%emt 0:00:00]} Qd3 {[%emt 0:01:35]} 35. Qe3 {[%emt 0:00:00]} Qxe3+ {[%emt 0:03:09]} 36. Nxe3 {[%emt 0:00:00]} Bxb4 {[%emt 0:00:00]} 37. Bxb4 {[%emt 0:00:00]} Rxb4 {[%emt 0:00:00]} 38. f5 {[%emt 0:00:13]} a3 {[%emt 0:03:36]} 39. Ra1 {[%emt 0:00:00]} exf5 {[%emt 0:01:22]} 40. e6 {[%emt 0:00:26]} Rxd4 {[%emt 0:01:06]} 41. Rxa3 {[%emt 0:00:06]} fxg4 {[%emt 0:00:21]} 42. Nc6 {[%emt 0:00:00]} Re4 {[%emt 0:00:21]} 43. Nd8 {[%emt 0:00:00]} Nc7 {[%emt 0:00:18]} 44. Nxd5 {[%emt 0:00:20]} Nxd5 {[%emt 0:00:36]} 45. Rxa6 {[%emt 0:00:00]} Nc7 {[%emt 0:00:00]} 46. Rc6 {[%emt 0:00:00]} Nxe6 {[%emt 0:00:00]} 47. Nxe6 {[%emt 0:00:00]} Kf7 {[%emt 0:00:00]} 0-1

[Event "Cellavision Cup 2019"]
[Site "Lund"]
[Date "2019.08.04"]
[Round "7.5"]
[White "Lindberg, Bengt"]
[Black "Olund, Joar"]
[Result "1/2-1/2"]
[ECO "B06"]
[WhiteElo "2384"]
[BlackElo "2313"]
[Annotator "NA"]
[PlyCount "76"]
[EventDate "2019.08.02"]
[EventType "swiss"]
[EventCountry "SWE"]
[SourceTitle "playchess.com"]
[Source "ChessBase"]
[SourceQuality "1"]
[TimeControl "900+5"]

1. e4 {[%emt 0:00:00]} g6 {[%emt 0:00:00]} 2. d4 {[%emt 0:00:00]} Bg7 {[%emt 0:00:00]} 3. Nc3 {[%emt 0:00:00]} d6 {[%emt 0:00:00]} 4. f4 {[%emt 0:00:00]} a6 {[%emt 0:00:00]} 5. Nf3 {[%emt 0:00:00]} b5 {[%emt 0:00:00]} 6. Bd3 {[%emt 0:00:00]} Nd7 {[%emt 0:00:00]} 7. e5 {[%emt 0:00:00]} Nh6 {[%emt 0:00:00]} 8. Ne4 {[%emt 0:00:00]} c5 {[%emt 0:00:00]} 9. c3 {[%emt 0:00:00]} cxd4 {[%emt 0:00:00]} 10. cxd4 {[%emt 0:00:00]} Nb6 {[%emt 0:00:00]} 11. h3 {[%emt 0:00:00]} f6 {[%emt 0:00:00]} 12. exf6 {[%emt 0:00:00]} exf6 {[%emt 0:00:00]} 13. O-O {[%emt 0:00:00]} O-O {[%emt 0:00:00]} 14. Ng3 {[%emt 0:00:00]} f5 {[%emt 0:00:00]} 15. Bc2 {[%emt 0:00:00]} Nf7 {[%emt 0:00:00]} 16. Bb3 {[%emt 0:00:00]} Nc4 {[%emt 0:00:00]} 17. Qd3 {[%emt 0:00:00]} Bb7 {[%emt 0:00:00]} 18. Bxc4 {[%emt 0:00:00]} bxc4 {[%emt 0:00:00]} 19. Qxc4 {[%emt 0:00:00]} Qb6 {[%emt 0:00:00]} 20. Kh2 {[%emt 0:00:00]} Rac8 {[%emt 0:00:00]} 21. Qd3 {[%emt 0:00:00]} Rfe8 {[%emt 0:00:00]} 22. Qd1 {[%emt 0:00:00]} Bxf3 {[%emt 0:00:00]} 23. Rxf3 {[%emt 0:00:00]} Qxd4 {[%emt 0:00:00]} 24. Rd3 {[%emt 0:00:00]} Qc4 {[%emt 0:00:00]} 25. Rb3 {[%emt 0:02:18]} Qc2 {[%emt 0:00:00]} 26. Qf1 {[%emt 0:00:00]} d5 {[%emt 0:00:59]} 27. Be3 {[%emt 0:01:07]} Qc4 {[%emt 0:03:06]} 28. Qd1 {[%emt 0:01:51]} Bxb2 {[%emt 0:02:33]} 29. Rb1 {[%emt 0:02:59]} d4 {[%emt 0:00:00]} 30. R1xb2 {[%emt 0:01:28]} dxe3 {[%emt 0:00:00]} 31. Qf3 {[%emt 0:00:42]} Qc6 {[%emt 0:07:20]} 32. Rxe3 {[%emt 0:00:00]} Rxe3 {[%emt 0:00:20]} 33. Qxe3 {[%emt 0:00:00]} Qc3 {[%emt 0:00:00]} 34. Qb6 {[%emt 0:01:17]} Qc6 {[%emt 0:00:29]} 35. Qa5 {[%emt 0:00:21]} Qd6 {[%emt 0:01:09]} 36. Qa4 {[%emt 0:00:13]} Qc6 {[%emt 0:00:00]} 37. Qa5 {[%emt 0:00:00]} Qd6 {[%emt 0:00:00]} 38. Qa4 {[%emt 0:00:00]} Qc6 {[%emt 0:00:00]} 1/2-1/2

[Event "Cellavision Cup 2019"]
[Site "Lund"]
[Date "2019.08.04"]
[Round "7.6"]
[White "Bellon Lopez, Juan Manuel"]
[Black "Marin, Mihail"]
[Result "0-1"]
[ECO "A80"]
[WhiteElo "2335"]
[BlackElo "2525"]
[Annotator "ChessBase"]
[PlyCount "57"]
[EventDate "2019.08.02"]
[EventType "swiss"]
[EventCountry "SWE"]
[SourceTitle "playchess.com"]
[Source "ChessBase"]
[SourceQuality "1"]
[TimeControl "900+5"]

1. d4 {[%emt 0:00:00]} f5 {[%emt 0:00:00]} 2. Nc3 {[%emt 0:00:00]} Nf6 {[%emt 0:00:00]} 3. g4 {[%emt 0:00:00]} d5 {[%emt 0:00:00]} 4. Bg2 {[%emt 0:00:00]} fxg4 {[%emt 0:00:00]} 5. Bg5 {[%emt 0:00:00]} c6 {[%emt 0:00:00]} 6. h3 {[%emt 0:00:00]} Na6 {[%emt 0:00:00]} 7. hxg4 {[%emt 0:00:00]} Bxg4 {[%emt 0:00:00]} 8. Bh3 {[%emt 0:00:00]} Qd7 {[%emt 0:00:00]} 9. Qd3 {[%emt 0:00:00]} Nb4 {[%emt 0:00:00]} 10. Qd2 {[%emt 0:00:00]} Qf5 {[%emt 0:00:00]} 11. O-O-O {[%emt 0:00:00]} O-O-O {[%emt 0:00:00]} 12. a3 {[%emt 0:00:00]} Na6 {[%emt 0:00:00]} 13. Bxf6 {[%emt 0:00:00]} exf6 {[%emt 0:00:00]} 14. Qd3 {[%emt 0:00:00]} Bxh3 {[%emt 0:00:00]} 15. Nxh3 {[%emt 0:00:00]} Qxd3 {[%emt 0:00:00]} 16. cxd3 {[%emt 0:00:00]} g6 {[%emt 0:00:00]} 17. f4 {[%emt 0:00:00]} Nc7 {[%emt 0:00:00]} 18. Nf2 {[%emt 0:00:00]} h5 {[%emt 0:00:00]} 19. Rdg1 {[%emt 0:00:00]} g5 {[%emt 0:00:00]} 20. e3 {[%emt 0:00:00]} gxf4 {[%emt 0:00:00]} 21. exf4 {[%emt 0:00:00]} Ne6 {[%emt 0:00:00]} 22. Rg6 {[%emt 0:00:00]} Rh6 {[%emt 0:00:00]} 23. Rxh6 {[%emt 0:00:00]} Bxh6 {[%emt 0:00:00]} 24. Rxh5 {[%emt 0:00:00]} Bxf4+ {[%emt 0:00:00]} 25. Kd1 {[%emt 0:00:00]} Nxd4 {[%emt 0:00:00]} 26. Ne2 {[%emt 0:00:00]} Be5 {[%emt 0:00:00]} 27. Ng4 {[%emt 0:00:00]} Nxe2 {[%emt 0:00:00]} 28. Nxe5 {[%emt 0:00:00]} Nf4 29. Nf7 0-1

[Event "Cellavision Cup 2019"]
[Site "Lund"]
[Date "2019.08.04"]
[Round "7.7"]
[White "Schneider, Stefan"]
[Black "Cramling, Pia"]
[Result "1/2-1/2"]
[ECO "D35"]
[WhiteElo "2379"]
[BlackElo "2479"]
[Annotator "ChessBase"]
[PlyCount "35"]
[EventDate "2019.08.02"]
[EventType "swiss"]
[EventCountry "SWE"]
[SourceTitle "playchess.com"]
[Source "ChessBase"]
[SourceQuality "1"]
[TimeControl "900+5"]

1. d4 {[%emt 0:00:00]} d5 {[%emt 0:00:00]} 2. c4 {[%emt 0:00:00]} e6 {[%emt 0:00:00]} 3. Nc3 {[%emt 0:00:00]} Nf6 {[%emt 0:00:00]} 4. cxd5 {[%emt 0:00:00]} exd5 {[%emt 0:00:00]} 5. Bg5 {[%emt 0:00:00]} c6 {[%emt 0:00:00]} 6. e3 {[%emt 0:00:00]} Bd6 {[%emt 0:00:00]} 7. Bd3 {[%emt 0:00:00]} O-O {[%emt 0:00:00]} 8. Nf3 {[%emt 0:00:00]} Re8 {[%emt 0:00:00]} 9. Qc2 {[%emt 0:00:00]} h6 {[%emt 0:00:00]} 10. Bh4 {[%emt 0:00:00]} a5 {[%emt 0:00:00]} 11. O-O {[%emt 0:00:00]} Bg4 {[%emt 0:00:00]} 12. Nd2 {[%emt 0:00:00]} g5 {[%emt 0:00:00]} 13. Bg3 {[%emt 0:00:00]} Bxg3 {[%emt 0:00:00]} 14. hxg3 {[%emt 0:00:00]} Qd6 {[%emt 0:00:00]} 15. Rfe1 {[%emt 0:00:00]} Nbd7 {[%emt 0:00:00]} 16. a3 {[%emt 0:00:00]} Kg7 {[%emt 0:00:00]} 17. Bf5 {[%emt 0:00:00]} Bxf5 {[%emt 0:00:00]} 18. Qxf5 {[%emt 0:00:00]} 1/2-1/2

[Event "Cellavision Cup 2019"]
[Site "Lund"]
[Date "2019.08.04"]
[Round "7.8"]
[White "Hansen, Torbjorn Ringdal"]
[Black "Akesson, Ralf"]
[Result "1/2-1/2"]
[ECO "B00"]
[WhiteElo "2432"]
[BlackElo "2348"]
[Annotator "NA"]
[PlyCount "48"]
[EventDate "2019.08.02"]
[EventType "swiss"]
[EventCountry "SWE"]
[SourceTitle "playchess.com"]
[Source "ChessBase"]
[SourceQuality "1"]
[TimeControl "900+5"]

1. e4 {[%emt 0:00:00]} e6 {[%emt 0:00:00]} 2. d4 {[%emt 0:00:00]} d5 {[%emt 0:00:00]} 3. Nd2 {[%emt 0:00:00]} dxe4 {[%emt 0:00:00]} 4. Nxe4 {[%emt 0:00:00]} Bd7 {[%emt 0:00:00]} 5. Nf3 {[%emt 0:00:00]} Bc6 {[%emt 0:00:00]} 6. Bd3 {[%emt 0:00:00]} Nd7 {[%emt 0:00:00]} 7. O-O {[%emt 0:00:00]} Ngf6 {[%emt 0:00:00]} 8. Ng3 {[%emt 0:00:00]} Bxf3 {[%emt 0:00:00]} 9. Qxf3 {[%emt 0:00:00]} c6 {[%emt 0:00:00]} 10. Re1 {[%emt 0:00:00]} g6 {[%emt 0:00:00]} 11. c4 {[%emt 0:00:00]} Bg7 {[%emt 0:00:00]} 12. d5 {[%emt 0:00:00]} cxd5 {[%emt 0:00:00]} 13. cxd5 {[%emt 0:00:00]} Qa5 {[%emt 0:00:00]} 14. Bh6 {[%emt 0:00:00]} Bxh6 {[%emt 0:00:00]} 15. dxe6 {[%emt 0:00:00]} O-O {[%emt 0:00:00]} 16. exd7 {[%emt 0:00:00]} Nxd7 {[%emt 0:00:00]} 17. Qxb7 {[%emt 0:00:00]} Nc5 {[%emt 0:00:00]} 18. Qb5 {[%emt 0:00:00]} Qxb5 {[%emt 0:00:00]} 19. Bxb5 {[%emt 0:00:00]} Rab8 {[%emt 0:00:00]} 20. Bc4 {[%emt 0:00:00]} Rxb2 {[%emt 0:00:00]} 21. Re7 {[%emt 0:00:00]} Rc2 {[%emt 0:00:00]} 22. Bd5 {[%emt 0:00:00]} Rd2 {[%emt 0:00:00]} 23. Bc4 {[%emt 0:00:00]} Rc2 {[%emt 0:00:00]} 24. Bd5 {[%emt 0:00:00]} Rd2 {[%emt 0:00:00]} 1/2-1/2

[Event "Cellavision Cup 2019"]
[Site "Lund"]
[Date "2019.08.04"]
[Round "7.9"]
[White "Seo, Jung Min"]
[Black "Ernst, Thomas"]
[Result "1/2-1/2"]
[ECO "D37"]
[WhiteElo "2399"]
[BlackElo "2335"]
[Annotator "NA"]
[PlyCount "115"]
[EventDate "2019.08.02"]
[EventType "swiss"]
[EventCountry "SWE"]
[SourceTitle "playchess.com"]
[Source "ChessBase"]
[SourceQuality "1"]
[TimeControl "900+5"]

1. d4 {[%emt 0:00:00]} d5 {[%emt 0:00:00]} 2. c4 {[%emt 0:00:00]} e6 {[%emt 0:00:00]} 3. Nc3 {[%emt 0:00:00]} Nf6 {[%emt 0:00:00]} 4. Nf3 {[%emt 0:00:00]} Be7 {[%emt 0:00:00]} 5. Bf4 {[%emt 0:00:00]} O-O {[%emt 0:00:00]} 6. e3 {[%emt 0:00:00]} b6 {[%emt 0:00:00]} 7. Qc2 {[%emt 0:00:00]} c5 {[%emt 0:00:00]} 8. dxc5 {[%emt 0:00:00]} bxc5 {[%emt 0:00:00]} 9. Rd1 {[%emt 0:00:00]} Bb7 {[%emt 0:00:00]} 10. Be2 {[%emt 0:00:00]} Nc6 {[%emt 0:00:00]} 11. O-O {[%emt 0:00:00]} Qb6 {[%emt 0:00:00]} 12. cxd5 {[%emt 0:00:00]} Nb4 {[%emt 0:00:00]} 13. Qb1 {[%emt 0:00:00]} Nbxd5 {[%emt 0:00:00]} 14. Nxd5 {[%emt 0:00:00]} exd5 {[%emt 0:00:00]} 15. Ne5 {[%emt 0:00:00]} Rfd8 {[%emt 0:00:00]} 16. Bf3 {[%emt 0:00:00]} Qe6 {[%emt 0:00:00]} 17. Nd3 {[%emt 0:00:00]} Rac8 {[%emt 0:00:00]} 18. Bg3 {[%emt 0:00:00]} Qb6 {[%emt 0:00:00]} 19. Rfe1 {[%emt 0:00:00]} Ne4 {[%emt 0:00:00]} 20. Nf4 {[%emt 0:00:00]} f5 {[%emt 0:00:00]} 21. Qc2 {[%emt 0:00:00]} g6 {[%emt 0:00:00]} 22. Rc1 {[%emt 0:00:00]} Bf6 {[%emt 0:00:00]} 23. Red1 {[%emt 0:00:00]} Kh8 {[%emt 0:00:00]} 24. Rb1 {[%emt 0:00:00]} d4 25. Qc1 {[%emt 0:05:04]} Ba6 {[%emt 0:00:00]} 26. Qc2 {[%emt 0:00:58]} Bb7 {[%emt 0:00:00]} 27. Qe2 {[%emt 0:00:19]} Re8 {[%emt 0:00:00]} 28. Qc4 {[%emt 0:00:40]} Rcd8 {[%emt 0:01:14]} 29. exd4 {[%emt 0:00:29]} cxd4 {[%emt 0:00:00]} 30. Nd3 {[%emt 0:00:01]} Ba6 {[%emt 0:00:21]} 31. Qb4 {[%emt 0:02:15]} Rc8 {[%emt 0:02:37]} 32. Qxb6 {[%emt 0:00:33]} axb6 {[%emt 0:00:00]} 33. h3 {[%emt 0:00:49]} Bc4 {[%emt 0:00:27]} 34. Ra1 {[%emt 0:00:28]} Nxg3 {[%emt 0:01:32]} 35. fxg3 {[%emt 0:00:00]} Bg8 {[%emt 0:00:58]} 36. Nf4 {[%emt 0:00:00]} Rc2 {[%emt 0:00:00]} 37. Bd5 {[%emt 0:00:00]} g5 {[%emt 0:00:58]} 38. Bxg8 {[%emt 0:00:00]} gxf4 {[%emt 0:00:00]} 39. Bb3 {[%emt 0:00:00]} Rxb2 {[%emt 0:00:00]} 40. gxf4 {[%emt 0:00:00]} d3 {[%emt 0:00:00]} 41. Rab1 {[%emt 0:01:14]} Bd4+ {[%emt 0:01:19]} 42. Kh2 {[%emt 0:00:09]} Rxb1 {[%emt 0:00:00]} 43. Rxb1 {[%emt 0:00:00]} d2 {[%emt 0:00:00]} 44. Rd1 {[%emt 0:00:00]} Bc3 {[%emt 0:00:00]} 45. g4 {[%emt 0:00:00]} Re1 {[%emt 0:00:07]} 46. Kg3 {[%emt 0:00:29]} Kg7 {[%emt 0:00:00]} 47. Kh4 {[%emt 0:00:00]} Kf6 {[%emt 0:00:15]} 48. Bc2 {[%emt 0:00:06]} Bb4 {[%emt 0:00:56]} 49. Kh5 {[%emt 0:00:32]} Rxd1 {[%emt 0:00:43]} 50. Bxd1 {[%emt 0:00:00]} Bd6 {[%emt 0:00:00]} 51. Bc2 {[%emt 0:00:00]} Bxf4 {[%emt 0:00:01]} 52. gxf5 {[%emt 0:00:00]} Ke5 {[%emt 0:00:00]} 53. Kg4 {[%emt 0:00:00]} Bh6 {[%emt 0:00:22]} 54. Kf3 {[%emt 0:00:00]} Bg5 {[%emt 0:00:00]} 55. Ke2 {[%emt 0:00:00]} h6 {[%emt 0:00:00]} 56. Kd1 {[%emt 0:00:00]} Kd4 {[%emt 0:00:00]} 57. f6 {[%emt 0:00:00]} Bxf6 {[%emt 0:00:00]} 58. Kxd2 {[%emt 0:00:00]} 1/2-1/2